fUSD/lending_fUSD_20240707
["ID","MTS","AMOUNT","RATE_DAILY","PERIOD"]
[331410400,1720349441833,-300.0,0.000135,4]
[331410401,1720349441843,-359.06627926,0.00013516,2]
[331410402,1720349441854,-684.90760768,0.00013516,2]
[331410403,1720349441864,-723.47457333,0.00013516,2]
[331410404,1720349441874,-155.0,0.00013543,2]
[331410405,1720349441884,-478.26886902,0.00013574,2]
[331410406,1720349441895,-235.2687,0.00013599,2]
[331410407,1720349441917,-700.0,0.000136,4]
[331410408,1720349441940,-255.2,0.00013652,2]
[331410409,1720349441962,-250.0,0.00013699,2]
[331410410,1720349441984,-1100.0,0.000137,5]
[331410411,1720349442007,-501.1919,0.000137,2]
[331410412,1720349442036,-256.12920161,0.000137,2]
[331410413,1720349442059,-9131.6085784,0.00013736,2]
[331410414,1720349442086,-3445.11094193,0.00013736,2]
[331410415,1720349442113,-198.48527426,0.00013736,2]
[331410416,1720349442136,-572.85299291,0.000138,2]
[331410418,1720349442165,-1448.0934574,0.000138,2]
[331410420,1720349442177,-876.7309019,0.000138,2]
[331410422,1720349442190,-437412.65117321,0.000138,2]
[331410425,1720349442203,-1997.0,0.000138,2]
[331410427,1720349442215,-3100.09378254,0.000138,2]
[331410478,1720349443052,-4503.24951063,0.000138,2]
[331410479,1720349443065,-5975.35005171,0.000138,2]
[331410480,1720349443077,-966.54999995,0.000138,2]
[331410487,1720349445591,-155.0,0.00013736,2]
[331410488,1720349445603,-671.25901472,0.000138,2]
[331410489,1720349445617,-523.44,0.000138,2]
[331410490,1720349445630,-67479.18857994,0.000138,2]
[331410491,1720349446332,30000.0,0.00034075,90]
[331410519,1720349448701,-591.5645175,0.00012,2]
[331410520,1720349448727,-50.3054825,0.00012,2]
[331410521,1720349448750,-4833.5992912,0.000138,2]
[331410522,1720349448810,-31326.89223065,0.000138,2]
[331410523,1720349449268,-6711.10793126,0.000138,2]
[331410524,1720349449280,-21708.48171763,0.000138,2]
[331410525,1720349449293,-1175.55550787,0.000138,2]
[331410526,1720349449305,-5574.6254141,0.000138,2]
[331410527,1720349449317,-1327.74776735,0.000138,2]
[331410528,1720349449330,-51216.5438173,0.000138,2]
[331410529,1720349449340,-1412.93673964,0.000138,2]
[331410530,1720349449352,-704.8,0.000138,2]
[331410531,1720349449363,-619.76020313,0.000138,2]
[331410532,1720349449374,-2908.2048,0.000138,2]
[331410533,1720349449386,-2990.778085,0.000138,2]
[331410534,1720349449397,-435.69073884,0.000138,2]
[331410537,1720349644843,689.35796756,0.00011199,2]
[331410538,1720349711939,3075.09742481,0.00011199,2]
[331410539,1720349721948,63334.79328028,0.00011199,2]
[331410540,1720349759871,50000.0,0.00034075,30]
[331410541,1720349785990,155.50140611,0.00011199,2]
[331410542,1720349802497,50000.0,0.00034075,31]
[331410543,1720349814733,50000.0,0.00034075,32]
[331410544,1720349818879,50000.0,0.00034075,33]
[331410545,1720349822476,50000.0,0.00034075,34]
[331410546,1720349826724,50000.0,0.00034075,35]
[331410547,1720349830604,50000.0,0.00034075,36]
[331410548,1720349835156,50000.0,0.00034075,37]
[331410549,1720349839383,50000.0,0.00034075,38]
[331410550,1720349843795,50000.0,0.00034075,39]
[331410551,1720349874501,50000.0,0.00034075,30]
[331410552,1720349878351,50000.0,0.00034075,31]
[331410553,1720349882667,50000.0,0.00034075,32]
[331410554,1720349916109,3073.08534734,0.00011199,2]
[331410555,1720349916312,50000.0,0.00034075,33]
[331410556,1720349918956,50000.0,0.00034075,34]
[331410557,1720349922032,50000.0,0.00034075,35]
[331410558,1720349925282,50000.0,0.00034075,36]
[331410559,1720349928751,50000.0,0.00034075,37]
[331410560,1720349932042,50000.0,0.00034075,38]
[331410561,1720349935525,50000.0,0.00034075,39]
[331410562,1720349957116,50000.0,0.00034075,30]
[331410563,1720349960398,50000.0,0.00034075,31]
[331410564,1720349965123,50000.0,0.00034075,32]
[331410565,1720349966695,50000.0,0.00034075,33]
[331410566,1720349969956,50000.0,0.00034075,34]
[331410567,1720349973010,50000.0,0.00034075,35]
[331410568,1720349977374,50000.0,0.00034075,36]
[331410569,1720349979192,50000.0,0.00034075,37]
[331410570,1720349982506,50000.0,0.00034075,38]
[331410571,1720349986177,50000.0,0.00034075,39]
[331410572,1720349991931,28039.43070464,0.00011199,2]
[331410573,1720350001062,50000.0,0.00034075,30]
[331410574,1720350003970,50000.0,0.00034075,31]
[331410575,1720350005888,50000.0,0.00034075,32]
[331410576,1720350009500,50000.0,0.00034075,33]
[331410577,1720350013364,50000.0,0.00034075,34]
[331410578,1720350019055,50000.0,0.00034075,35]
[331410579,1720350034820,56000.0,0.00034075,36]
[331410580,1720350071184,155.0,0.00011199,2]
[331410581,1720350075658,24720.73753228,0.00011199,2]
[331410582,1720350075859,155.0,0.00011199,2]
[331410584,1720350084307,282.55,0.0001111,2]
[331410586,1720350243236,155.0,0.00011199,2]
[331410588,1720350497258,5602.87066756,0.00011199,2]
[331410589,1720350504684,2838.55295866,0.00011199,2]
[331410595,1720350573740,155.0,0.00011199,2]
[331410597,1720350590724,155.0,0.00011199,2]
[331410598,1720350602857,155.0,0.00011199,2]
[331410601,1720350615524,155.0,0.00011199,2]
[331410606,1720350632530,-915.48268028,0.00012173,2]
[331410607,1720350632541,-915.48268026,0.00012188,2]
[331410608,1720350632551,-945.50822099,0.00012302,2]
[331410609,1720350632562,-267.47891241,0.00012302,2]
[331410610,1720350632573,-953.28,0.0001251,2]
[331410611,1720350632582,-1266.1264539,0.00012852,2]
[331410612,1720350632596,-72.74849393,0.00012852,2]
[331410613,1720350632607,-12288.11515418,0.00012852,2]
[331410614,1720350632646,-1052.60047608,0.00012852,2]
[331410629,1720350639310,-603.8553,0.00012202,2]
[331410630,1720350639347,-311.62738026,0.00012202,2]
[331410631,1720350639357,-1357.22981974,0.00012852,2]
[331410632,1720350639370,-4207.3276,0.00012852,2]
[331410633,1720350639383,-602.34,0.00012852,2]
[331410634,1720350639396,-4392.38695,0.00012852,2]
[331410635,1720350639407,-250.0,0.00012886,2]
[331410636,1720350639419,-209.89,0.00012923,2]
[331410637,1720350639430,-250.0,0.00012928,2]
[331410638,1720350639441,-169.39,0.00013055,2]
[331410639,1720350639451,-28451.65,0.00013126,2]
[331410640,1720350639461,-909.39,0.00013126,2]
[331410641,1720350639472,-848.18,0.00013128,2]
[331410642,1720350639482,-364.46359716,0.00013128,2]
[331410643,1720350639492,-1000.0,0.0001318,2]
[331410644,1720350639501,-499.99,0.0001318,2]
[331410645,1720350639512,-282.55,0.00013373,2]
[331410646,1720350639522,-299.99,0.00013472,2]
[331410647,1720350639531,-1069.86,0.00013472,2]
[331410648,1720350639541,-528.73,0.000135,2]
[331410649,1720350639551,-200.0,0.000135,4]
[331410650,1720350639561,-524.57681731,0.00013543,2]
[331410651,1720350639571,-648.91718286,0.00013543,2]
[331410652,1720350639580,-500.0,0.000136,4]
[331410653,1720350639590,-165.716325,0.00013605,2]
[331410654,1720350639600,-10777.0,0.00013662,2]
[331410655,1720350639610,-452.17,0.00013699,5]
[331410656,1720350639620,-453.61,0.00013699,2]
[331410657,1720350639630,-1838.7809,0.000137,2]
[331410658,1720350639640,-3103.9289,0.000137,2]
[331410659,1720350639650,-258.81405428,0.000137,2]
[331410660,1720350640285,-360.91901781,0.000137,2]
[331410662,1720350640298,-2397.39112791,0.000137,2]
[331410663,1720350640308,-1431.1953707,0.000137,2]
[331410664,1720350640320,-30173.7054293,0.000137,2]
[331410666,1720350640330,-800.0,0.000137,5]
[331410667,1720350640339,-162.59089085,0.000137,2]
[331410668,1720350640349,-1728.82497625,0.000137,2]
[331410669,1720350640359,-343.32274391,0.000137,2]
[331410670,1720350640369,-3000.0,0.0001371,2]
[331410671,1720350640378,-1806.14636113,0.00013736,2]
[331410672,1720350640391,-566.18888113,0.00013736,2]
[331410673,1720350640403,-5257.76629392,0.00013736,2]
[331410674,1720350640415,-116.13243339,0.00013756,2]
[331410675,1720350640428,-33.86756661,0.00013756,2]
[331410676,1720350640437,-9408.47065999,0.000138,2]
[331410677,1720350641132,-6701.63463298,0.000138,2]
[331410678,1720350642266,-948.72424631,0.000138,2]
[331410680,1720350642278,-2818.80991683,0.000138,2]
[331410683,1720350642289,-819.45729106,0.000138,2]
[331410685,1720350642300,-54376.16772876,0.000138,2]
[331410743,1720350643432,-2527.00853443,0.000138,2]
[331410744,1720350644654,-2048.21782627,0.000138,2]
[331410764,1720350646991,-226.8,0.00013699,2]
[331410765,1720350647001,-2762.27952393,0.000138,2]
[331410766,1720350647204,-731205.31090336,0.000138,2]
[331410767,1720350865495,70.40356467,0.00034079,30]
[331410768,1720350865938,4461.53872289,0.00011199,2]
[331410769,1720350953127,496204.09064374,0.00011199,2]
[331410773,1720351002299,899.10221779,0.00011199,2]
[331410775,1720351072497,524.57681731,0.00011199,2]
[331410778,1720351238852,5671.56215341,0.00011199,2]
[331410780,1720351280815,20645.55900715,0.00011199,2]
[331410781,1720351304832,343.88,0.00010319,2]
[331410782,1720351326573,155.0,0.00011199,2]
[331410783,1720351374641,10525.28715581,0.00011199,2]
[331410784,1720351397421,652.63499037,0.00011199,2]
[331410786,1720351692478,1043.21965598,0.00011199,2]
[331410787,1720351698238,158.72665019,0.00011199,2]
[331410788,1720351723103,25437.79726289,0.00011199,2]
[331410789,1720351723130,80157.65685111,0.00011199,2]
[331410790,1720351768514,3074.42673232,0.00011199,2]
[331410793,1720351796860,-1553.0987,0.00012114,2]
[331410795,1720351796903,-881.48303251,0.00012184,2]
[331410799,1720351798080,155.0,0.00011199,2]
[331410800,1720351817651,2375.7192167,0.00011199,2]
[331410845,1720351834054,-250.0,0.00011918,2]
[331410846,1720351834064,-118.51696749,0.00012184,2]
[331410847,1720351834074,-7778.31835401,0.0001223,2]
[331410848,1720351834087,-16121.68164599,0.0001223,2]
[331410849,1720351834097,-200.0,0.00012242,2]
[331410850,1720351834107,-250.0,0.00012247,2]
[331410851,1720351834117,-232.08,0.00012255,2]
[331410852,1720351834126,-524.57681731,0.00012314,2]
[331410853,1720351834137,-446.39,0.00012334,2]
[331410854,1720351834146,-446.39,0.00012368,2]
[331410855,1720351834157,-446.39,0.00012402,2]
[331410856,1720351834167,-446.39,0.00012436,2]
[331410857,1720351834177,-178.21,0.00012469,2]
[331410858,1720351834187,-446.39,0.0001247,2]
[331410859,1720351834197,-446.39,0.00012503,2]
[331410860,1720351834207,-446.39,0.00012537,2]
[331410861,1720351834217,-446.39,0.00012571,2]
[331410862,1720351834227,-446.39,0.00012605,2]
[331410863,1720351834237,-446.39,0.00012639,2]
[331410864,1720351834247,-446.39,0.00012673,2]
[331410865,1720351834257,-446.39,0.00012706,2]
[331410866,1720351834267,-446.39,0.0001274,2]
[331410867,1720351834282,-446.39,0.00012774,2]
[331410868,1720351834292,-446.39,0.00012808,2]
[331410869,1720351834302,-499.99,0.00012821,2]
[331410870,1720351834312,-164.65,0.00012829,2]
[331410871,1720351834322,-168.8,0.00012834,2]
[331410872,1720351834333,-446.39,0.00012842,2]
[331410873,1720351834344,-164.65,0.00012845,2]
[331410874,1720351834354,-1399.1,0.00012845,2]
[331410875,1720351834364,-3868.99,0.00012845,2]
[331410876,1720351834374,-999.99,0.00012845,2]
[331410877,1720351834385,-1415.52,0.00012845,2]
[331410878,1720351834395,-164.65,0.00012861,2]
[331410879,1720351834405,-446.39,0.00012876,2]
[331410880,1720351834415,-164.65,0.00012877,2]
[331410881,1720351834425,-164.65,0.00012893,2]
[331410882,1720351834436,-446.39,0.00012909,2]
[331410883,1720351834446,-446.39,0.00012943,2]
[331410884,1720351834457,-446.39,0.00012977,2]
[331410885,1720351834468,-112175.0,0.00013029,2]
[331410886,1720351834478,-8461.0896453,0.00013091,2]
[331410887,1720351834488,-13809.177,0.00013101,2]
[331410888,1720351834499,-1802.58439959,0.00013128,2]
[331410889,1720351834509,-201.41094439,0.00013128,2]
[331410890,1720351834520,-155.37777102,0.00013128,2]
[331410891,1720351834530,-215.35725993,0.00013128,2]
[331410892,1720351834541,-156.0656565,0.00013472,2]
[331410893,1720351834551,-717.96737227,0.00013472,2]
[331410894,1720351834562,-390.16749326,0.0001349,2]
[331410895,1720351834572,-173.59,0.00013495,2]
[331410896,1720351834583,-700.0,0.000135,4]
[331410897,1720351834593,-155.0,0.00013516,2]
[331410898,1720351834603,-1464.4626,0.000136,2]
[331410899,1720351834613,-1469.4857,0.000136,2]
[331410900,1720351834624,-1874.3955965,0.000136,2]
[331410901,1720351834635,-10023.6389,0.000136,2]
[331410902,1720351834645,-500.0,0.000136,2]
[331410903,1720351834655,-336.8644453,0.000136,2]
[331410904,1720351834666,-320.43456088,0.000136,2]
[331410905,1720351834676,-32942.2649,0.000136,2]
[331410906,1720351834687,-1273.3157,0.000136,2]
[331410907,1720351834697,-1400.0,0.000136,4]
[331410908,1720351834709,-10000.0,0.00013602,2]
[331410909,1720351834719,-168.782851,0.00013605,2]
[331410910,1720351834730,-1920.4044,0.00013644,2]
[331410911,1720351834741,-3000.0,0.0001366,2]
[331410912,1720351834753,-336.86444528,0.00013675,2]
[331410913,1720351834765,-345.2,0.00013699,2]
[331410914,1720351834777,-1878.95,0.00013699,2]
[331410915,1720351834787,-100000.0,0.000137,2]
[331410916,1720351834797,-22706.04889369,0.000137,2]
[331410917,1720351834811,-941.26867698,0.000137,2]
[331410918,1720351834825,-674.0,0.000137,2]
[331410919,1720351834838,-25914.33750285,0.000137,2]
[331410920,1720351834850,-600.0,0.000137,2]
[331410921,1720351834863,-10820.76410104,0.000137,2]
[331410922,1720351834875,-20106.10361351,0.000137,2]
[331410923,1720351834943,-341.42630098,0.000137,2]
[331410924,1720351834955,-600.243895,0.000137,2]
[331410925,1720351834967,-315.04,0.000137,2]
[331410926,1720351834981,-781.95019923,0.000137,2]
[331410927,1720351834993,-2130.44985288,0.000137,2]
[331410928,1720351835004,-827.13712285,0.000137,2]
[331410929,1720351835016,-821.72,0.000137,2]
[331410930,1720351835028,-271.2999999,0.000137,2]
[331410931,1720351835041,-1553.09868948,0.000137,2]
[331410932,1720351835053,-418.90217464,0.000137,2]
[331410933,1720351835066,-90376.35262785,0.000137,2]
[331410934,1720351835080,-699.8050217,0.000137,2]
[331410935,1720351835092,-264.78577028,0.000137,2]
[331410936,1720351835104,-5540.8028585,0.000137,2]
[331410937,1720351835116,-1106.34848806,0.000137,2]
[331410938,1720351835128,-1612.2239206,0.000137,2]
[331410947,1720351838817,-391.88,0.00013699,2]
[331410951,1720351838827,-237.9,0.00013699,3]
[331410954,1720351838838,-1484.55931272,0.000137,2]
[331410956,1720351838850,-904.14953505,0.000137,2]
[331410957,1720351838863,-2307.51909693,0.000137,2]
[331410958,1720351838875,-5243.22356511,0.000137,2]
[331410959,1720351838887,-34797.04088017,0.000137,2]
[331410960,1720351838897,-156.0208,0.000137,2]
[331410961,1720351838907,-39483.4685,0.000137,2]
[331410962,1720351838917,-188.88739323,0.000137,2]
[331410963,1720351838926,-2100.0,0.000137,5]
[331410964,1720351838936,-164.62039431,0.000137,2]
[331410965,1720351838946,-170.64,0.000137,2]
[331410966,1720351838956,-170.64,0.000137,2]
[331410967,1720351838966,-170.64,0.000137,2]
[331410968,1720351838976,-170.64,0.000137,2]
[331410969,1720351838986,-170.64,0.000137,2]
[331410970,1720351838995,-1000.0,0.00013707,2]
[331410971,1720351839006,-168.399,0.00013716,2]
[331410972,1720351839016,-1265.01058332,0.00013736,2]
[331410973,1720351839027,-336.86444528,0.0001375,2]
[331410974,1720351839037,-1630.1845532,0.00013759,2]
[331410975,1720351839047,-1630.1845532,0.00013759,2]
[331410976,1720351839058,-168.399,0.00013778,2]
[331410977,1720351839068,-500.0,0.00013799,2]
[331410978,1720351839079,-280.6834284,0.00013799,2]
[331410979,1720351839089,-487.69807354,0.00013799,2]
[331410980,1720351839099,-500.0,0.00013799,2]
[331410981,1720351839110,-500.0,0.00013799,2]
[331410982,1720351839121,-291.32044223,0.00013799,2]
[331410983,1720351839131,-562225.93524375,0.000138,2]
[331410984,1720351839148,-652.16989619,0.000138,2]
[331410985,1720351839161,-816.70025,0.000138,2]
[331410986,1720351839177,-281.65001258,0.000138,2]
[331410987,1720351839190,-598.0,0.000138,2]
[331410988,1720351839202,-600.68898,0.000138,2]
[331410989,1720351839215,-417.84487201,0.000138,2]
[331410990,1720351839228,-1915.37295685,0.000138,2]
[331410991,1720351839240,-40460.0,0.000138,2]
[331410992,1720351839253,-31455.24753762,0.000138,2]
[331410993,1720351839265,-531.79482725,0.000138,2]
[331410994,1720351839322,360.6,0.00010989,2]
[331410995,1720351841182,-360.6,0.00013252,2]
[331410999,1720351841193,-315.87483956,0.000138,2]
[331411006,1720351841205,-266.33974194,0.000138,2]
[331411010,1720351841217,-21922.23458186,0.000138,2]
[331411020,1720351841258,-1043.21965598,0.000138,2]
[331411034,1720351841570,-750.64043962,0.000138,2]
[331411035,1720351841665,-2752.35,0.000138,2]
[331411036,1720351841677,-496.46245175,0.000138,2]
[331411037,1720351841689,-1283.9577871,0.000138,2]
[331411090,1720351846430,-210.77020957,0.0001369,2]
[331411091,1720351846441,-706.3349947,0.000138,2]
[331411092,1720351846454,-1021.69195202,0.000138,2]
[331411093,1720351846470,-4649.54624605,0.000138,2]
[331411102,1720351847470,-498.7999998,0.000138,2]
[331411103,1720351847482,-4650.0,0.000138,2]
[331411104,1720351847505,-4853.45619711,0.000138,2]
[331411105,1720351847518,-11886.63575202,0.000138,2]
[331411106,1720351847530,-490.81734235,0.000138,2]
[331411107,1720351847542,-1262.10257877,0.000138,2]
[331411108,1720351847555,-1200.0,0.000138,2]
[331411109,1720351847568,-3953.81927455,0.000138,2]
[331411110,1720351847581,-560.7578107,0.000138,2]
[331411111,1720351847593,-5993.96581954,0.000138,2]
[331411112,1720351847606,-1126.43968259,0.000138,2]
[331411113,1720351847619,-272.8214903,0.000138,2]
[331411114,1720351847631,-10397.62039256,0.000138,2]
[331411115,1720351847812,-155.0,0.00013472,2]
[331411116,1720351847823,-155.0,0.00013574,2]
[331411117,1720351847839,-363.46432981,0.000138,2]
[331411118,1720351848173,-2664.21245993,0.000138,2]
[331411119,1720351848185,-2196.85111599,0.000138,2]
[331411120,1720351848197,-15734.435,0.000138,2]
[331411121,1720352045599,216.7765288,0.000118,2]
[331411122,1720352045744,2932.66588142,0.000118,2]
[331411123,1720352070033,2255.07312818,6.94e-05,2]
[331411128,1720352155515,1252.2026457,8.412e-05,2]
[331411129,1720352193028,305.69878088,8.412e-05,2]
[331411131,1720352246149,305.69878088,0.00010196,2]
[331411132,1720352282479,28677.86362993,0.00011199,2]
[331411133,1720352377093,150.0,0.00011199,2]
[331411134,1720352377118,150.0,0.00011199,2]
[331411135,1720352377140,150.0,0.00011199,2]
[331411136,1720352377163,150.0,0.00011199,2]
[331411137,1720352377189,27054.70142438,0.00011199,2]
[331411138,1720352414231,150.0,0.00011199,2]
[331411139,1720352414259,126798.9384579,0.00011199,2]
[331411140,1720352439836,182.48651472,0.00011199,2]
[331411141,1720352452696,150.0,0.00011199,2]
[331411142,1720352452723,150.0,0.00011199,2]
[331411143,1720352452748,150.0,0.00011199,2]
[331411144,1720352452771,150.0,0.00011199,2]
[331411145,1720352452796,150.0,0.00011199,2]
[331411146,1720352452820,150.0,0.00011199,2]
[331411147,1720352452845,150.0,0.00011199,2]
[331411148,1720352452871,150.0,0.00011199,2]
[331411149,1720352452895,150.0,0.00011199,2]
[331411150,1720352452920,150.0,0.00011199,2]
[331411151,1720352452945,295.0,0.00011199,2]
[331411152,1720352452971,295.0,0.00011199,2]
[331411153,1720352452999,17743.87112132,0.00011199,2]
[331411154,1720352468822,2065.06000647,0.00011199,2]
[331411155,1720352490764,260.75924553,0.00011199,2]
[331411156,1720352502333,424.94216003,0.00011199,2]
[331411157,1720352518400,263.61281146,0.00011199,2]
[331411158,1720352524490,15436.64259195,0.00011199,2]
[331411159,1720352542280,450.0,0.00011199,2]
[331411160,1720352543744,19629.04410476,0.00011199,2]
[331411161,1720352555190,5478.25159604,0.00011199,2]
[331411162,1720352559836,155.0,0.00011199,2]
[331411163,1720352575464,155.50465982,0.00011199,2]
[331411164,1720352610008,305.69878088,0.00011199,2]
[331411165,1720352613445,293.89179733,0.00011199,2]
[331411166,1720352644107,2379.58266841,0.00011199,2]
[331411167,1720352655945,3111.75923711,0.00011199,2]
[331411168,1720352662859,300.0,0.00011199,2]
[331411169,1720352668194,1817.20672033,0.00011199,2]
[331411170,1720352676467,15439.86245759,0.00011199,2]
[331411171,1720352682657,349.35,0.00010501,2]
[331411172,1720352682731,2767.31390935,0.00011199,2]
[331411173,1720352701442,175.41039267,0.00011199,2]
[331411174,1720352704950,3394.25146719,0.00011199,2]
[331411175,1720352717800,155.0,0.00011199,2]
[331411176,1720352729762,3016.31639596,0.00011199,2]
[331411177,1720352759381,5601.67350826,0.00011199,2]
[331411179,1720352773195,5911.05839326,0.00011199,2]
[331411180,1720352781076,24725.94279289,0.00011199,2]
[331411181,1720352781627,165.03,9.852e-05,2]
[331411182,1720352797421,1083.7717216,0.00011199,2]
[331411183,1720352807052,9243.00446491,0.00011199,2]
[331411184,1720352810483,15439.86245759,0.00011199,2]
[331411187,1720352839414,155.09019591,0.00011199,2]
[331411188,1720352872563,159.02754267,0.00012314,30]
[331411189,1720352887884,3382.6500061,0.00011199,2]
[331411191,1720352915590,-375.97783779,0.000118,2]
[331411195,1720352947398,5601.67350826,0.00011199,2]
[331411196,1720352949508,300.77106222,0.00011199,2]
[331411197,1720352949633,15430.20286067,0.00011199,2]
[331411200,1720352974188,1817.20672033,0.00011199,2]
[331411201,1720352974231,1963.82814303,0.00011199,2]
[331411202,1720352978505,9415.9276291,0.00011199,2]
[331411205,1720352992360,424.94216003,0.00011199,2]
[331411206,1720352992841,2202.29524664,0.00011199,2]
[331411207,1720353023416,476.68989804,0.00011199,2]
[331411236,1720353034800,-906.40983597,0.000118,2]
[331411237,1720353034809,-600.0,0.00012264,2]
[331411238,1720353034820,-155.0,0.00012273,2]
[331411239,1720353034830,-719.79983681,0.00012302,2]
[331411240,1720353034840,-300.0,0.00012313,2]
[331411241,1720353034849,-537.63652189,0.00012314,2]
[331411242,1720353034859,-627.12487314,0.00012314,2]
[331411243,1720353034869,-209.03096185,0.00012314,2]
[331411244,1720353034880,-193.85231866,0.00012314,2]
[331411245,1720353034890,-250.0,0.00012319,2]
[331411246,1720353034901,-1628.37365168,0.0001232,2]
[331411247,1720353034913,-5695.5,0.0001232,2]
[331411248,1720353034926,-1180.74374656,0.0001232,2]
[331411249,1720353034938,-351.56071379,0.0001232,2]
[331411250,1720353034950,-4443.51873846,0.0001232,2]
[331411251,1720353034962,-423.56713528,0.0001232,2]
[331411252,1720353034987,-1442.01221234,0.0001232,2]
[331411253,1720353034998,-544.0998858,0.0001232,2]
[331411254,1720353035010,-319.11717139,0.0001232,2]
[331411255,1720353035022,-870.73526763,0.0001232,2]
[331411256,1720353035034,-481.19843009,0.0001232,2]
[331411257,1720353035046,-4281.9081366,0.0001232,2]
[331411258,1720353041080,-3151.41919843,0.00012313,2]
[331411259,1720353041091,-2237.66491038,0.0001232,2]
[331411260,1720353041101,-150.0,0.00012438,2]
[331411261,1720353041110,-168.86,0.00012453,2]
[331411262,1720353041120,-250.0,0.00012453,2]
[331411263,1720353041131,-588.84694025,0.0001251,2]
[331411264,1720353041141,-151.13517006,0.000126,2]
[331411265,1720353041153,-499.99,0.000126,2]
[331411266,1720353041163,-349.35,0.00012765,2]
[331411267,1720353041173,-400.0,0.00012792,2]
[331411268,1720353041184,-555.8,0.00012863,2]
[331411269,1720353041195,-12645.54598853,0.00012863,2]
[331411270,1720353041208,-3026.11595785,0.00012863,2]
[331411271,1720353041221,-12588.33805362,0.00012863,2]
[331411272,1720353041231,-188.85,0.00012913,2]
[331411273,1720353041240,-1049.92436851,0.00012918,2]
[331411274,1720353041250,-3918.67348824,0.00012927,2]
[331411275,1720353041259,-19279.9562,0.00012928,2]
[331411276,1720353041269,-979.55417132,0.0001305,2]
[331411277,1720353041278,-150.0,0.00013098,2]
[331411278,1720353041288,-150.86,0.00013098,2]
[331411279,1720353041300,-150.0,0.00013098,2]
[331411280,1720353041310,-150.0,0.00013098,2]
[331411281,1720353041319,-150.0,0.00013098,2]
[331411282,1720353041329,-150.0,0.00013098,2]
[331411283,1720353041338,-150.0,0.00013098,2]
[331411284,1720353041349,-150.0,0.00013098,2]
[331411285,1720353041358,-150.0,0.00013098,2]
[331411286,1720353041368,-528.73,0.00013098,2]
[331411287,1720353041379,-150.0,0.00013098,2]
[331411288,1720353041391,-300.48,0.00013098,2]
[331411289,1720353041400,-528.73,0.000131,2]
[331411290,1720353041408,-150.0,0.000131,2]
[331411291,1720353041418,-150.0,0.000131,2]
[331411292,1720353041427,-305.69878088,0.00013128,2]
[331411293,1720353041436,-155.8228308,0.00013128,2]
[331411294,1720353041446,-212.53794126,0.00013128,2]
[331411295,1720353041456,-344.35398415,0.00013128,2]
[331411296,1720353041465,-202.95876181,0.00013128,2]
[331411297,1720353041475,-400.0,0.00013133,2]
[331411298,1720353041485,-150.0,0.00013178,2]
[331411299,1720353041496,-150.0,0.00013178,2]
[331411300,1720353041506,-172.9,0.00013178,2]
[331411301,1720353041516,-150.0,0.00013178,2]
[331411302,1720353041526,-2020.977,0.000132,2]
[331411303,1720353041536,-317.65,0.00013474,2]
[331411304,1720353041547,-841.3694,0.000135,2]
[331411305,1720353041556,-400.0,0.000135,4]
[331411306,1720353041566,-420.0,0.00013513,2]
[331411307,1720353041576,-4366.5988526,0.00013574,2]
[331411308,1720353041585,-5386.87256081,0.00013574,2]
[331411309,1720353041594,-1493.8618116,0.00013574,2]
[331411310,1720353041604,-424.94216003,0.00013574,2]
[331411311,1720353041613,-26746.33347221,0.0001358,2]